bitfinex/quotes_SOLUSD_20241229
["timestamp","ask_amount","ask_price","bid_price","bid_amount"]
[1735515835936,7.5215344,190.28,190.12,18.24048554]
[1735515836239,0.79014363,190.27,190.2,20.0]
[1735515837811,1.5199,190.28,190.2,20.0]
[1735515843819,1.5199,190.28,190.21,20.0]
[1735515844372,1.5199,190.28,190.22,20.0]
[1735515844550,1.5199,190.28,190.22,20.78831678]
[1735515845040,1.5199,190.28,190.22,0.78831678]
[1735515845223,1.5199,190.28,190.24,20.0]
[1735515846242,1.5199,190.28,190.23,20.0]
[1735515846944,1.5199,190.28,190.22,23.776884]
[1735515847137,6.6398,190.3,190.25,20.0]
[1735515849255,6.6398,190.3,190.27,20.0]
[1735515850152,1.5122,190.32,190.27,20.0]
[1735515851546,6.0016344,190.34,190.27,20.0]
[1735515851746,0.79014363,190.35,190.27,20.0]
[1735515851935,0.79014363,190.36,190.27,20.0]
[1735515855667,6.79177803,190.36,190.24,6.6398]
[1735515855859,6.79177803,190.36,190.21,23.776884]
[1735515856161,6.79177803,190.36,190.26,20.0]
[1735515857941,6.79177803,190.36,190.24,20.0]
[1735515858232,29.7785184,190.35,190.24,20.0]
[1735515858452,0.79014363,190.34,190.21,20.0]
[1735515858762,6.1119,190.32,190.21,20.0]
[1735515858961,0.79014363,190.31,190.21,20.0]
[1735515859667,0.79014363,190.31,190.19,20.0]
[1735515860161,0.79014363,190.31,190.2,20.0]
[1735515860546,0.79014363,190.31,190.18,31.43459385]
[1735515860748,0.79014363,190.31,190.19,23.776884]
[1735515861066,6.90204363,190.32,190.24,20.0]
[1735515861242,6.1119,190.32,190.24,20.0]
[1735515861948,6.1119,190.32,190.24,20.78817926]
[1735515862148,1.504,190.33,190.26,20.0]
[1735515862565,1.504,190.33,190.24,0.78817926]
[1735515862866,1.504,190.33,190.19,11.43429288]
[1735515863872,1.504,190.33,190.24,20.0]
[1735515864762,1.504,190.33,190.25,20.0]
[1735515865181,1.504,190.33,190.24,20.0]
[1735515869071,1.504,190.33,190.25,23.776884]
[1735515869280,1.504,190.33,190.29,20.0]
[1735515871777,1.5122,190.4,190.31,20.0]
[1735515872083,0.79014363,190.39,190.31,20.0]
[1735515873176,23.776884,190.38,190.28,20.0]
[1735515873359,0.79014363,190.37,190.28,20.0]
[1735515874414,0.79014363,190.37,190.26,20.0]
[1735515876277,1.514,190.35,190.2,1.5178]
[1735515876579,7.11424363,190.34,190.21,23.776884]
[1735515876882,7.11424363,190.34,190.24,20.0]
[1735515878661,7.5156344,190.35,190.24,20.0]
[1735515878662,1.514,190.35,190.24,11.43448959]
[1735515878867,1.514,190.35,190.25,10.64621672]
[1735515879069,1.514,190.35,190.26,0.78806524]
[1735515879659,1.514,190.35,190.24,30.64621672]
[1735515879984,1.514,190.35,190.26,20.0]
[1735515881082,1.514,190.35,190.24,31.4343381]
[1735515881586,1.514,190.35,190.26,20.0]
[1735515882782,1.514,190.35,190.24,31.4343381]
[1735515883190,1.514,190.35,190.2,9.77992472]
[1735515883358,30.89112763,190.34,190.2,8.26212472]
[1735515883982,30.89112763,190.34,190.23,20.0]
[1735515884782,30.89112763,190.34,190.19,16.63710997]
[1735515885282,30.89112763,190.34,190.22,20.0]
[1735515888394,7.11424363,190.34,190.22,20.0]
[1735515888580,7.11424363,190.34,190.24,20.0]
[1735515895315,7.11424363,190.34,190.25,20.0]
[1735515898210,7.11424363,190.34,190.24,20.0]
[1735515898386,23.776884,190.33,190.24,20.0]
[1735515898585,0.79014363,190.32,190.2,8.26212472]
[1735515899086,0.79014363,190.32,190.23,20.0]
[1735515900095,0.79014363,190.33,190.24,20.0]
[1735515900718,0.79014363,190.33,190.23,20.0]
[1735515900881,24.56702763,190.33,190.23,20.0]
[1735515901397,24.56702763,190.33,190.21,20.0]
[1735515901706,0.79014363,190.33,190.21,17.42542277]
[1735515901907,0.79014363,190.33,190.2,36.63710997]
[1735515902215,24.56702763,190.33,190.22,20.0]
[1735515902390,25.314784,190.32,190.22,20.0]
[1735515902591,0.79014363,190.31,190.22,20.0]
[1735515902990,0.79014363,190.31,190.2,20.0]
[1735515903417,1.6117,190.28,190.16,8.26212472]
[1735515903720,0.79014363,190.27,190.16,8.26212472]
[1735515904087,0.79014363,190.27,190.14,8.26212472]
[1735515904512,0.79014363,190.27,190.17,20.0]
[1735515904908,2.40184363,190.28,190.19,20.0]
[1735515906095,2.40184363,190.28,190.17,20.0]
[1735515906728,2.40184363,190.28,190.16,20.0]
[1735515907014,2.40184363,190.28,190.18,20.0]
[1735515907412,2.40184363,190.28,190.19,20.0]
[1735515912312,2.40184363,190.28,190.19,30.65514848]
[1735515912313,1.6117,190.28,190.19,30.65514848]
[1735515912516,1.6117,190.28,190.22,20.0]
[1735515914228,0.79014363,190.27,190.16,23.776884]
[1735515914727,0.79014363,190.27,190.19,20.0]
[1735515916532,1.6117,190.28,190.22,20.0]
[1735515916704,1.6117,190.28,190.23,10.65514848]
[1735515916905,1.6117,190.33,190.26,20.0]
[1735515917117,0.79014363,190.32,190.26,20.0]
[1735515917324,0.79014363,190.32,190.2,10.65514848]
[1735515917523,0.79014363,190.32,190.21,10.65514848]
[1735515917937,0.79014363,190.32,190.25,20.0]
[1735515918120,2.40184363,190.33,190.26,20.0]
[1735515918508,1.6117,190.33,190.26,20.0]
[1735515920533,1.6117,190.33,190.25,20.0]
[1735515920838,0.79014363,190.32,190.25,20.0]
[1735515921007,2.40184363,190.33,190.25,20.0]
[1735515922114,1.6117,190.33,190.26,20.0]
[1735515923147,1.6117,190.33,190.26,10.65514848]
[1735515923311,1.5306,190.38,190.31,20.0]
[1735515923707,1.5306,190.38,190.33,20.0]
[1735515925818,1.5306,190.38,190.3,0.78784595]
[1735515926134,1.5306,190.38,190.3,20.0]
[1735515926344,2.32074363,190.38,190.3,20.0]
[1735515926526,1.5306,190.38,190.3,20.0]
[1735515927241,2.32074363,190.38,190.24,11.44310583]
[1735515927419,2.32074363,190.38,190.24,0.78795735]
[1735515927821,2.32074363,190.38,190.27,20.0]
[1735515928021,2.32074363,190.38,190.24,23.776884]
[1735515928244,2.32074363,190.38,190.25,10.65514848]
[1735515928748,2.32074363,190.38,190.28,20.0]
[1735515929129,1.5306,190.38,190.28,20.0]
[1735515929331,1.5306,190.38,190.29,11.44309857]
[1735515929552,1.5306,190.38,190.33,20.0]
[1735515929925,6.0321,190.43,190.37,20.0]
[1735515930956,6.0321,190.43,190.35,11.44283707]
[1735515931135,1.5306,190.44,190.35,11.44283707]
[1735515931136,1.5306,190.44,190.39,20.0]
[1735515932236,1.5306,190.44,190.37,20.0]
[1735515934656,1.5306,190.44,190.3,24.68290561]
[1735515935457,1.5306,190.44,190.33,20.0]
[1735515936339,0.79014363,190.43,190.3,24.68290561]
[1735515936839,0.79014363,190.43,190.33,20.0]
[1735515937056,0.79014363,190.43,190.34,20.0]
[1735515937455,0.79014363,190.43,190.35,20.0]
[1735515937749,1.5306,190.44,190.35,20.0]
[1735515938050,0.29014363,190.43,190.34,20.0]
[1735515945362,6.3426,190.42,190.3,22.64270561]
[1735515945550,0.29014363,190.41,190.28,16.61060561]
[1735515945742,0.29014363,190.41,190.28,22.95320561]
[1735515946436,0.29014363,190.41,190.32,20.0]
[1735515947965,0.29014363,190.41,190.31,20.0]
[1735515948673,0.29014363,190.41,190.32,20.0]
[1735515949164,24.06702763,190.41,190.28,6.3426]
[1735515949373,1.5293,190.4,190.24,24.82850561]
[1735515949543,0.29014363,190.39,190.28,20.0]
[1735515949940,24.06702763,190.39,190.28,20.0]
[1735515950164,24.06702763,190.39,190.27,20.0]
[1735515951865,24.06702763,190.39,190.28,20.0]
[1735515954342,24.06702763,190.39,190.27,20.0]
[1735515954872,1.5293,190.37,190.25,0.78811681]
[1735515955061,24.06702763,190.36,190.2,16.98961222]
[1735515955371,30.06884075,190.36,190.2,36.98961222]
[1735515955540,30.06884075,190.36,190.23,20.0]
[1735515955868,30.06884075,190.36,190.2,16.98961222]
[1735515956374,30.06884075,190.36,190.24,20.0]
[1735515957168,6.29195675,190.36,190.25,20.0]
[1735515957368,1.5293,190.37,190.3,20.0]
[1735515957369,1.81944363,190.37,190.3,20.0]
[1735515957573,1.5293,190.37,190.3,20.0]
[1735515958369,1.81944363,190.37,190.29,20.0]
[1735515958851,1.81944363,190.37,190.27,20.0]
[1735515959058,1.81944363,190.37,190.28,20.0]
[1735515959449,1.81944363,190.37,190.27,20.0]
[1735515960140,23.776884,190.36,190.25,20.0]
[1735515960363,0.29014363,190.35,190.25,20.0]
[1735515960556,0.29014363,190.35,190.21,11.43005311]
[1735515961064,0.29014363,190.35,190.24,20.0]
[1735515961469,24.06702763,190.36,190.24,20.0]
[1735515961775,24.06702763,190.36,190.25,20.0]
[1735515963182,0.29014363,190.36,190.25,20.0]
[1735515964557,0.29014363,190.36,190.23,30.64201222]
[1735515964756,7.63381942,190.37,190.25,10.64201222]
[1735515965074,1.5293,190.37,190.28,20.0]
[1735515965259,1.81944363,190.37,190.28,20.0]
[1735515965464,1.81944363,190.37,190.25,11.43006045]
[1735515965465,1.81944363,190.37,190.29,20.0]
[1735515966250,1.81944363,190.37,190.28,20.0]
[1735515967582,1.81944363,190.37,190.27,20.0]
[1735515968576,1.5293,190.37,190.29,20.0]
[1735515968779,1.5293,190.37,190.3,20.0]
[1735515969187,1.81944363,190.37,190.3,20.0]
[1735515969382,1.81944363,190.37,190.25,10.64201222]
[1735515969383,1.81944363,190.37,190.28,20.0]
[1735515970002,1.81944363,190.37,190.29,20.0]
[1735515970603,1.81944363,190.37,190.28,20.0]
[1735515972601,1.81944363,190.37,190.26,20.0]
[1735515973186,1.81944363,190.37,190.28,20.0]
[1735515973789,1.5293,190.37,190.28,20.0]
[1735515974402,1.5293,190.37,190.27,23.776884]
[1735515974703,8.1095,190.42,190.33,20.0]
[1735515974906,8.1095,190.42,190.35,20.0]
[1735515975490,8.1095,190.42,190.36,20.0]
[1735515975691,1.5412,190.42,190.35,10.64201222]
[1735515975904,1.5412,190.46,190.38,20.0]
[1735515977905,1.5412,190.46,190.39,20.0]
[1735515978479,1.5412,190.46,190.38,20.0]
[1735515980105,1.5412,190.46,190.39,20.0]
[1735515980307,1.5412,190.46,190.4,20.0]
[1735515980606,1.5412,190.46,190.39,20.78747435]
[1735515982103,1.5412,190.46,190.4,20.0]
[1735515986520,1.6611,190.5,190.42,20.0]
[1735515989917,0.29014363,190.49,190.42,20.0]
[1735515990318,1.95124363,190.5,190.42,20.0]
[1735515991428,1.95124363,190.5,190.36,22.9521143]
[1735515991429,1.95124363,190.5,190.36,6.343]
[1735515991599,1.95124363,190.5,190.41,20.0]
[1735515994022,1.95124363,190.5,190.42,20.0]
[1735515994191,1.6611,190.5,190.43,20.0]
[1735515994396,1.6611,190.5,190.44,20.0]
[1735515996334,1.6611,190.5,190.43,20.0]
[1735515998734,6.00181312,190.53,190.45,20.0]
[1735515998937,1.5016,190.54,190.45,30.62409205]
[1735515999237,1.5016,190.54,190.45,20.0]
[1735515999421,1.79174363,190.54,190.45,20.0]
[1735515999828,1.5016,190.54,190.45,20.0]
[1735516001458,0.29014363,190.53,190.41,1.5178]
[1735516001733,6.29195675,190.53,190.41,20.0]
[1735516003346,6.29195675,190.53,190.42,43.776884]
[1735516003724,6.29195675,190.53,190.43,20.0]
[1735516005842,1.5016,190.54,190.43,20.78740039]
[1735516005843,1.79174363,190.54,190.43,20.78740039]
[1735516006741,1.5016,190.54,190.43,31.41149244]
[1735516007541,1.5016,190.54,190.47,20.0]
[1735516007843,1.5016,190.54,190.48,20.0]
[1735516008416,1.5016,190.54,190.48,10.62409205]
[1735516008918,1.5976,190.58,190.49,10.62409205]
[1735516009421,1.5976,190.58,190.49,11.41116682]
[1735516009738,1.5976,190.58,190.53,20.0]
[1735516010432,1.5976,190.58,190.51,20.0]
[1735516014536,1.5976,190.58,190.53,20.0]
[1735516016461,1.5976,190.58,190.51,16.58639185]
[1735516016745,1.5976,190.58,190.55,20.0]
[1735516016952,7.59941312,190.63,190.55,20.0]
[1735516017148,7.88955675,190.63,190.55,20.0]
[1735516018158,7.88955675,190.63,190.54,20.0]
[1735516018567,1.5976,190.63,190.55,16.58639185]
[1735516019037,1.5976,190.63,190.59,20.0]
[1735516019232,12.03021312,190.69,190.59,20.0]
[1735516019233,12.03021312,190.69,190.63,20.0]
[1735516019438,6.0284,190.69,190.63,20.0]
[1735516020050,6.0284,190.69,190.61,20.0]
[1735516020268,0.29014363,190.68,190.6,20.0]
[1735516020470,6.0284,190.69,190.61,20.0]
[1735516020761,6.0284,190.69,190.62,20.0]
[1735516021468,1.5976,190.7,190.6,16.58639185]
[1735516021629,1.5976,190.7,190.63,20.0]
[1735516022141,1.5976,190.7,190.62,20.0]
[1735516022542,1.5976,190.7,190.63,20.0]
[1735516023041,1.5976,190.7,190.59,17.37297777]
[1735516023966,1.5976,190.7,190.63,20.0]
[1735516024332,1.5976,190.7,190.57,18.08709185]
[1735516024608,1.0976,190.7,190.61,20.0]
[1735516025232,1.0976,190.7,190.59,20.0]
[1735516025557,1.0976,190.7,190.6,20.0]
[1735516026967,1.0976,190.7,190.57,2.287387]
[1735516027136,0.29014363,190.69,190.52,2.29026357]
[1735516027338,6.29195675,190.69,190.57,20.0]
[1735516027650,6.29195675,190.69,190.58,20.0]
[1735516028069,6.29195675,190.69,190.54,41.15008246]
[1735516028395,6.0021,190.68,190.57,20.0]
[1735516028674,0.29014363,190.67,190.57,20.0]
[1735516029972,0.29014363,190.67,190.58,6.0021]
[1735516031039,0.29014363,190.67,190.61,20.0]
[1735516031658,0.29014363,190.67,190.58,6.0021]
[1735516031843,0.29014363,190.67,190.61,20.0]
[1735516033165,0.29014363,190.67,190.6,20.0]
[1735516033560,24.06702763,190.67,190.6,20.0]
[1735516033883,6.0021,190.68,190.61,20.0]
[1735516034474,1.0976,190.7,190.63,20.0]
[1735516034655,24.06702763,190.69,190.6,20.0]
[1735516034856,6.10451942,190.69,190.54,10.60440121]
[1735516035054,29.88140342,190.69,190.56,20.0]
[1735516035262,29.88140342,190.69,190.58,20.0]
[1735516035578,23.776884,190.68,190.58,20.0]
[1735516035768,0.29014363,190.67,190.58,20.0]
[1735516036450,0.29014363,190.67,190.56,20.0]
[1735516036650,1.6467,190.65,190.56,20.0]
[1735516036851,0.29014363,190.64,190.56,20.0]
[1735516037980,0.29014363,190.64,190.54,20.0]
[1735516038277,0.29014363,190.64,190.55,20.0]
[1735516043181,0.29014363,190.64,190.52,0.78693609]
[1735516043596,0.29014363,190.64,190.54,20.0]
[1735516043977,0.29014363,190.64,190.52,0.78693609]
[1735516044185,0.29014363,190.64,190.54,20.0]
[1735516046799,24.06702763,190.64,190.53,20.0]
[1735516046971,30.06884075,190.64,190.53,20.0]
[1735516047175,30.06884075,190.64,190.49,0.78699298]
[1735516047176,30.06884075,190.64,190.5,20.0]
[1735516047868,30.06884075,190.64,190.51,20.0]
[1735516048783,30.06884075,190.64,190.5,20.0]
[1735516049104,23.776884,190.58,190.45,0.7870978]
[1735516049397,0.29014363,190.57,190.43,11.39169651]
[1735516049597,0.29014363,190.57,190.46,20.0]
[1735516049994,1.79634363,190.59,190.48,20.0]
[1735516050294,23.776884,190.58,190.48,20.0]
[1735516050497,0.29014363,190.57,190.43,0.78715874]
[1735516051191,1.5062,190.55,190.4,10.60440121]
[1735516051382,0.29014363,190.54,190.45,20.0]
[1735516052104,0.29014363,190.54,190.43,0.78733714]
[1735516053001,0.29014363,190.54,190.44,20.0]
[1735516053200,24.06702763,190.54,190.44,20.0]
[1735516053407,24.06702763,190.54,190.39,10.60440121]
[1735516054407,24.06702763,190.54,190.42,20.0]
[1735516055916,24.06702763,190.54,190.44,20.0]
[1735516056201,1.5062,190.55,190.46,20.0]
[1735516056405,0.29014363,190.54,190.46,20.0]
[1735516056774,0.29014363,190.54,190.44,20.0]
[1735516058415,0.29014363,190.54,190.42,10.60440121]
[1735516058716,0.29014363,190.54,190.45,20.0]
[1735516059318,0.29014363,190.54,190.44,20.0]
[1735516059821,0.29014363,190.54,190.46,20.0]
[1735516060817,0.29014363,190.54,190.38,0.78735772]
[1735516060818,0.29014363,190.54,190.45,20.0]
[1735516061030,24.06702763,190.54,190.45,20.0]
[1735516061621,24.06702763,190.54,190.4,31.39184595]
[1735516061824,24.06702763,190.54,190.4,20.78744474]
[1735516062148,24.06702763,190.54,190.37,19.04199498]
[1735516062316,23.776884,190.52,190.37,0.78749377]
[1735516062491,23.776884,190.49,190.33,21.31093633]
[1735516062823,0.29014363,190.48,190.33,9.04973512]
[1735516063030,1.5187,190.47,190.36,20.0]
[1735516063198,0.29014363,190.46,190.36,20.0]
[1735516063531,24.06702763,190.46,190.31,8.26212472]
[1735516064085,24.06702763,190.46,190.34,20.0]
[1735516064509,23.776884,190.44,190.33,20.0]
[1735516064701,0.29014363,190.43,190.33,20.0]
[1735516064912,0.29014363,190.43,190.3,11.39215521]
[1735516065221,0.29014363,190.43,190.33,20.0]
[1735516066339,0.29014363,190.43,190.31,30.60440121]
[1735516066515,0.29014363,190.43,190.32,0.78782519]
[1735516070327,0.29014363,190.43,190.35,20.0]
[1735516070503,6.1043,190.45,190.37,20.0]
[1735516070707,6.1043,190.45,190.38,0.78771404]
[1735516071013,6.1043,190.45,190.41,20.0]
[1735516071806,6.1043,190.45,190.4,20.0]
[1735516072525,6.1043,190.45,190.37,20.0]
[1735516073216,6.1043,190.45,190.38,20.0]
[1735516073613,6.1043,190.45,190.4,20.0]
[1735516073816,1.5187,190.47,190.4,31.39195974]
[1735516074544,6.088,190.5,190.45,20.0]
[1735516074709,6.088,190.5,190.46,20.0]
[1735516075034,1.664,190.51,190.46,20.0]
[1735516076830,1.664,190.51,190.43,0.78740741]
[1735516077037,1.664,190.51,190.4,10.60440121]
[1735516077448,1.664,190.51,190.44,20.0]
[1735516079242,1.664,190.51,190.45,20.0]
[1735516083745,1.664,190.51,190.44,20.0]
[1735516085155,1.664,190.51,190.43,20.0]
[1735516086823,1.664,190.51,190.44,20.0]
[1735516087348,1.664,190.51,190.38,23.776884]
[1735516087550,1.664,190.51,190.39,11.39185567]
[1735516088661,1.664,190.51,190.43,20.0]
[1735516089155,1.664,190.51,190.41,31.39183477]
[1735516089339,1.664,190.51,190.47,20.0]
[1735516090022,1.664,190.51,190.42,10.60440121]
[1735516090221,1.664,190.51,190.43,0.7873598]
[1735516090465,1.664,190.51,190.45,20.0]
[1735516090771,1.664,190.51,190.46,20.0]
[1735516091247,1.664,190.51,190.47,20.0]
[1735516091459,6.088,190.54,190.47,20.0]
[1735516092134,6.088,190.54,190.46,20.0]
[1735516095061,6.088,190.54,190.45,20.78729913]
[1735516095255,0.29014363,190.53,190.45,20.0]
[1735516095859,6.37814363,190.54,190.46,20.0]
[1735516096756,6.37814363,190.54,190.45,20.0]
[1735516097559,6.37814363,190.54,190.41,31.3918035]
[1735516098556,6.37814363,190.54,190.43,20.0]
[1735516098764,6.37814363,190.54,190.44,20.0]
[1735516099977,6.37814363,190.54,190.45,20.0]
[1735516102857,6.088,190.54,190.47,20.0]
[1735516103232,6.088,190.54,190.47,20.78725636]
[1735516104670,1.5952,190.55,190.47,20.78725636]
[1735516104967,6.4075,190.59,190.52,20.0]
[1735516105631,6.4075,190.59,190.51,20.0]
[1735516107349,6.4075,190.59,190.52,20.0]
[1735516107959,6.4075,190.59,190.51,20.0]
[1735516108666,6.4075,190.59,190.5,20.0]
[1735516111865,6.4075,190.59,190.48,0.78713621]
[1735516112047,6.4075,190.59,190.42,21.16977105]
[1735516112048,24.06702763,190.58,190.42,21.16977105]
[1735516112455,24.06702763,190.58,190.45,20.0]
[1735516112655,23.776884,190.56,190.42,30.08592784]
[1735516112861,23.776884,190.56,190.4,16.87110121]
[1735516112862,0.29014363,190.55,190.4,16.87110121]
[1735516113173,0.29014363,190.55,190.43,20.0]
[1735516113573,6.4075,190.54,190.39,32.4312268]
[1735516113871,0.29014363,190.53,190.39,32.4312268]
[1735516114542,24.06702763,190.53,190.42,20.0]
[1735516115146,1.6461,190.52,190.42,20.0]
[1735516115475,24.06702763,190.51,190.36,16.87110121]
[1735516115774,24.06702763,190.51,190.39,20.0]
[1735516116068,1.6461,190.48,190.35,0.78750169]
[1735516116274,0.29014363,190.47,190.37,20.0]
[1735516116574,0.29014363,190.47,190.38,20.0]
[1735516116954,1.6461,190.48,190.39,0.78765961]
[1735516117148,1.6461,190.48,190.43,20.0]
[1735516117873,1.6461,190.48,190.42,20.0]
[1735516118379,1.6461,190.48,190.43,20.0]
[1735516118581,1.6461,190.48,190.44,20.0]
[1735516119181,1.6461,190.48,190.41,0.78742428]
[1735516119381,1.6461,190.48,190.43,20.0]
[1735516120080,1.6461,190.48,190.42,20.0]
[1735516121681,1.6461,190.48,190.39,0.78750251]
[1735516121887,1.6461,190.48,190.41,20.0]
[1735516122073,0.29014363,190.47,190.41,20.0]
[1735516122272,0.29014363,190.47,190.35,18.86652593]
[1735516122465,24.06702763,190.47,190.35,18.86652593]
[1735516122665,24.06702763,190.47,190.34,12.89360606]
[1735516122869,24.06702763,190.47,190.37,20.0]
[1735516124390,1.6461,190.48,190.38,20.0]
[1735516124563,1.6461,190.48,190.38,30.60440121]
[1735516126188,1.6461,190.48,190.39,0.7875402]
[1735516127972,1.6461,190.48,190.43,20.0]
[1735516128173,1.6461,190.48,190.44,20.0]
[1735516129801,1.6461,190.48,190.43,20.0]
[1735516131770,1.6461,190.48,190.39,10.60440121]
[1735516131973,1.6461,190.48,190.42,20.0]
[1735516132169,0.29014363,190.47,190.42,20.0]
[1735516132495,0.29014363,190.47,190.36,10.60440121]
[1735516132496,0.29014363,190.47,190.39,20.0]
[1735516132794,1.6461,190.48,190.4,20.0]
[1735516133305,1.6461,190.48,190.41,20.0]
[1735516133799,1.6461,190.48,190.42,20.0]
[1735516136200,1.6461,190.48,190.44,20.0]
[1735516137683,1.6461,190.48,190.43,20.0]
[1735516138195,1.6461,190.48,190.42,20.0]
[1735516138582,1.6461,190.48,190.43,20.0]
[1735516139307,1.6461,190.48,190.41,20.0]
[1735516139913,1.6461,190.48,190.37,20.78755799]
[1735516140080,1.6461,190.48,190.41,20.0]
[1735516141112,0.29014363,190.47,190.35,0.78753623]
[1735516141283,0.29014363,190.47,190.34,20.36802593]
[1735516141777,0.29014363,190.47,190.37,20.0]
[1735516142105,24.06702763,190.47,190.37,20.0]
[1735516144382,24.06702763,190.47,190.3,1.6291]
[1735516144584,24.06702763,190.47,190.31,10.60440121]
[1735516144985,24.06702763,190.47,190.34,20.0]
[1735516145304,24.06702763,190.47,190.31,10.60440121]
[1735516145498,24.06702763,190.47,190.34,20.0]
[1735516145677,24.06702763,190.47,190.31,10.60440121]
[1735516146403,24.06702763,190.47,190.34,20.0]
[1735516146704,0.29014363,190.47,190.37,10.60440121]
[1735516146905,1.6461,190.48,190.41,20.0]
[1735516147216,1.6461,190.48,190.44,20.0]
[1735516147382,263.19823614,190.73,190.44,11.3918338]
[1735516147383,1.6106,190.55,190.44,11.3918338]
[1735516147586,0.29014363,190.54,190.44,11.3918338]
[1735516147806,0.29014363,190.54,190.46,20.0]
[1735516150595,1.6106,190.55,190.47,30.60440121]
[1735516150918,1.6106,190.55,190.5,20.0]
[1735516154095,1.6106,190.55,190.49,20.0]
[1735516158531,1.6106,190.55,190.46,10.60440121]
[1735516158532,1.6106,190.55,190.5,20.0]
[1735516159026,1.6106,190.55,190.46,30.60440121]
[1735516159741,1.6106,190.55,190.5,20.0]
[1735516159894,6.4497,190.57,190.51,20.0]
[1735516160294,6.4497,190.57,190.52,20.0]
[1735516160834,6.4497,190.57,190.51,20.0]
[1735516161140,1.6455,190.59,190.51,30.60440121]
[1735516161432,1.6455,190.59,190.51,11.39140065]
[1735516163115,1.6455,190.59,190.52,10.60440121]
[1735516163735,1.6455,190.59,190.51,11.39140065]
[1735516165038,1.6455,190.64,190.57,20.0]
[1735516165830,1.6455,190.64,190.54,0.78688225]
[1735516166240,1.6455,190.64,190.55,20.0]
[1735516166823,0.29014363,190.63,190.5,6.1876]
[1735516167140,24.06702763,190.63,190.48,12.9737367]
[1735516168146,24.06702763,190.63,190.51,20.0]
[1735516168634,24.06702763,190.63,190.52,20.0]
[1735516169944,1.6455,190.64,190.54,20.0]
[1735516170438,0.29014363,190.63,190.54,20.0]
[1735516170817,1.6455,190.64,190.54,20.0]
[1735516171343,26.4103,190.63,190.53,0.78705341]
[1735516171522,23.776884,190.59,190.45,8.26212472]
[1735516171723,23.776884,190.56,190.45,8.26212472]
[1735516171928,0.29014363,190.55,190.45,8.26212472]
[1735516172127,0.29014363,190.55,190.48,20.0]
[1735516172637,0.29014363,190.56,190.47,20.0]
[1735516174444,0.29014363,190.56,190.44,20.78717868]
[1735516174613,0.29014363,190.56,190.47,20.0]
[1735516176643,0.29014363,190.56,190.46,20.0]
[1735516176946,6.4103,190.57,190.46,20.0]
[1735516177146,6.4103,190.57,190.47,0.78726079]
[1735516177645,1.6455,190.6,190.52,20.0]
[1735516177853,1.6455,190.6,190.53,20.0]
[1735516178945,1.6455,190.6,190.54,20.0]
[1735516179120,1.6455,190.6,190.54,20.78698242]
[1735516179821,1.6455,190.6,190.54,0.78698242]
[1735516181648,1.6455,190.6,190.55,20.0]
[1735516181947,1.6455,190.6,190.53,0.78692072]
[1735516182147,1.6455,190.6,190.53,20.78692072]
[1735516183048,1.6455,190.6,190.53,0.78692072]
[1735516183347,1.6455,190.6,190.52,0.78694538]
[1735516184448,1.6455,190.6,190.54,20.0]
[1735516184834,1.6455,190.6,190.49,0.78694123]
[1735516185447,0.29014363,190.59,190.51,20.0]
[1735516185953,1.6455,190.6,190.51,20.0]
[1735516186133,1.6455,190.6,190.53,20.0]
[1735516186520,1.6455,190.6,190.53,20.78695624]
[1735516187034,1.6455,190.6,190.54,20.0]
[1735516187962,1.6455,190.6,190.52,20.0]
[1735516188247,1.6455,190.6,190.52,20.78703006]